[Event "DVM U12W 2021"]
[Site "Willingen"]
[Date "2022.08.16"]
[Round "7"]
[White "Henzel, Leonie"]
[Black "Engeln, Helene"]
[Result "1-0"]
[ECO "D02"]
[WhiteElo "1134"]
[BlackElo "956"]
[Annotator "NA RC"]
[PlyCount "43"]
[EventDate "2022.08.12"]
[EventType "team-tourn"]
[EventRounds "7"]
[EventCountry "GER"]
[SourceTitle "playchess.com"]
[Source "ChessBase"]
[SourceQuality "1"]
[TimeControl "40/5400+30:1800+30"]

1. d4 {[%emt 0:00:02]} d5 {[%emt 0:00:05]} 2. g3 {[%emt 0:00:10]} Nf6 {[%emt 0:00:06]} 3. Nf3 {[%emt 0:00:12]} Bf5 {[%emt 0:00:13]} 4. Bg2 {[%emt 0:00:26]} e6 {[%emt 0:00:12]} 5. O-O {[%emt 0:00:35]} Be7 {[%emt 0:00:45]} 6. c4 {[%emt 0:04:21]} O-O {[%emt 0:09:12]} 7. Bf4 {[%emt 0:07:04]} h6 {[%emt 0:08:15]} 8. Nc3 {[%emt 0:04:22]} dxc4 {[%emt 0:12:25]} 9. Qa4 {[%emt 0:01:07]} Nh5 {[%emt 0:00:54]} 10. Be3 {[%emt 0:01:54]} Qd7 {[%emt 0:06:58]} 11. Qxc4 {[%emt 0:01:29]} Nc6 {[%emt 0:05:36]} 12. Ne5 {[%emt 0:04:42]} Nxe5 {[%emt 0:06:14]} 13. dxe5 {[%emt 0:00:30]} c6 {[%emt 0:04:06]} 14. Bf3 {[%emt 0:03:54]} Bg6 {[%emt 0:10:05]} 15. g4 {[%emt 0:02:02]} Qd8 {[%emt 0:04:15]} 16. gxh5 {[%emt 0:02:36]} Bxh5 {[%emt 0:00:22]} 17. Bxh5 {[%emt 0:00:44]} Bg5 {[%emt 0:00:21]} 18. Bxg5 {[%emt 0:01:42]} Qxg5+ {[%emt 0:00:08]} 19. Qg4 {[%emt 0:00:41]} Qd2 {[%emt 0:03:01]} 20. Ne4 {[%emt 0:01:37]} f5 {[%emt 0:00:36]} 21. exf6 {[%emt 0:02:54]} Qd7 {[%emt 0:05:15]} 22. Nc5 {[%emt 0:02:09]} 1-0

[Event "DVM U12W 2021"]
[Site "Willingen"]
[Date "2022.08.16"]
[Round "7"]
[White "Gerlach, Lorena"]
[Black "Kopylov, Diana"]
[Result "1-0"]
[ECO "A43"]
[WhiteElo "1120"]
[BlackElo "1108"]
[Annotator "NA RC"]
[PlyCount "61"]
[EventDate "2022.08.12"]
[EventType "team-tourn"]
[EventRounds "7"]
[EventCountry "GER"]
[SourceTitle "playchess.com"]
[Source "ChessBase"]
[SourceQuality "1"]
[TimeControl "40/5400+30:1800+30"]

1. d4 {[%emt 0:00:03]} d5 {[%emt 0:00:07]} 2. Nf3 {[%emt 0:00:05]} c5 {[%emt 0:00:08]} 3. g3 {[%emt 0:00:20]} cxd4 {[%emt 0:01:58]} 4. Nxd4 {[%emt 0:02:05]} e5 {[%emt 0:02:35]} 5. Nb3 {[%emt 0:01:38]} Nf6 {[%emt 0:01:51]} 6. Bg2 {[%emt 0:00:36]} Be6 {[%emt 0:00:54]} 7. O-O {[%emt 0:00:14]} Nc6 {[%emt 0:00:32]} 8. Bg5 {[%emt 0:02:58]} Be7 {[%emt 0:01:36]} 9. Nc3 {[%emt 0:01:07]} d4 {[%emt 0:05:53]} 10. Bxf6 {[%emt 0:05:58]} Bxf6 {[%emt 0:00:25]} 11. Ne4 {[%emt 0:00:42]} O-O {[%emt 0:09:08]} 12. e3 {[%emt 0:03:40]} Be7 {[%emt 0:12:04]} 13. Nec5 {[%emt 0:04:44]} Bxc5 {[%emt 0:09:15]} 14. Nxc5 {[%emt 0:00:11]} Qb6 {[%emt 0:02:59]} 15. Nxe6 {[%emt 0:02:02]} fxe6 {[%emt 0:01:18]} 16. exd4 {[%emt 0:02:40]} exd4 {[%emt 0:03:25]} 17. b3 {[%emt 0:05:11]} e5 {[%emt 0:02:33]} 18. Qe2 {[%emt 0:07:54]} Rae8 {[%emt 0:03:26]} 19. Rae1 {[%emt 0:02:40]} Qc5 {[%emt 0:03:59]} 20. a4 {[%emt 0:12:36]} Rf7 {[%emt 0:05:00]} 21. Qc4 {[%emt 0:03:32]} Qxc4 {[%emt 0:00:38]} 22. bxc4 {[%emt 0:00:08]} Rc7 {[%emt 0:01:10]} 23. f4 {[%emt 0:01:21]} Nb4 {[%emt 0:12:56]} 24. Rxe5 {[%emt 0:00:46]} Rxe5 {[%emt 0:00:31]} 25. fxe5 {[%emt 0:00:04]} Nxc2 {[%emt 0:01:22]} 26. Bd5+ {[%emt 0:00:11]} Rf7 {[%emt 0:01:09]} 27. Rxf7 {[%emt 0:00:27]} h6 {[%emt 0:00:16]} 28. Rf2+ {[%emt 0:00:11]} Kh8 {[%emt 0:01:04]} 29. Rf8+ {[%emt 0:00:12]} Kh7 {[%emt 0:00:06]} 30. Be4+ {[%emt 0:02:08]} g6 {[%emt 0:00:10]} 31. Bxc2 {[%emt 0:00:07]} 1-0

[Event "DVM U12W 2021"]
[Site "Willingen"]
[Date "2022.08.16"]
[Round "7"]
[White "Glotz, Diana"]
[Black "Belkina, Elisabeth"]
[Result "1-0"]
[ECO "A34"]
[WhiteElo "1116"]
[BlackElo "1126"]
[Annotator "NA RC"]
[PlyCount "35"]
[EventDate "2022.08.12"]
[EventType "team-tourn"]
[EventRounds "7"]
[EventCountry "GER"]
[SourceTitle "playchess.com"]
[Source "ChessBase"]
[SourceQuality "1"]
[TimeControl "40/5400+30:1800+30"]

1. c4 {[%emt 0:00:07]} c5 {[%emt 0:00:00]} 2. Nc3 {[%emt 0:00:08]} Nf6 {[%emt 0:00:22]} 3. g3 {[%emt 0:00:22]} d5 {[%emt 0:00:12]} 4. cxd5 {[%emt 0:00:12]} Nxd5 {[%emt 0:00:14]} 5. Bg2 {[%emt 0:00:14]} Nc7 {[%emt 0:02:46]} 6. Qb3 {[%emt 0:02:40]} Nc6 {[%emt 0:08:55]} 7. Nf3 {[%emt 0:12:29]} e5 {[%emt 0:01:41]} 8. d3 {[%emt 0:10:10]} b6 {[%emt 0:02:22]} 9. Ng5 {[%emt 0:21:08]} Qe7 {[%emt 0:00:33]} 10. Bxc6+ {[%emt 0:01:22]} Bd7 {[%emt 0:00:13]} 11. Bxa8 {[%emt 0:00:12]} Nxa8 {[%emt 0:02:55]} 12. Qd5 {[%emt 0:04:39]} Nc7 {[%emt 0:00:30]} 13. Qb7 {[%emt 0:16:01]} Qd8 {[%emt 0:00:41]} 14. Nd5 {[%emt 0:02:06]} Nxd5 {[%emt 0:00:13]} 15. Qxd5 {[%emt 0:04:34]} Qe7 {[%emt 0:00:17]} 16. Qa8+ {[%emt 0:00:20]} Qd8 {[%emt 0:00:05]} 17. Qxd8+ {[%emt 0:00:14]} Kxd8 {[%emt 0:00:11]} 18. Nxf7+ 1-0

[Event "DVM U12W 2021"]
[Site "Willingen"]
[Date "2022.08.16"]
[Round "7"]
[White "Berger, Jennifer"]
[Black "Marrufo, Emilia"]
[Result "1/2-1/2"]
[ECO "C45"]
[WhiteElo "1050"]
[BlackElo "970"]
[Annotator "NA RC"]
[PlyCount "124"]
[EventDate "2022.08.12"]
[EventType "team-tourn"]
[EventRounds "7"]
[EventCountry "GER"]
[SourceTitle "playchess.com"]
[Source "ChessBase"]
[SourceQuality "1"]
[TimeControl "40/5400+30:1800+30"]

1. e4 {[%emt 0:01:03]} e5 {[%emt 0:00:00]} 2. Nf3 {[%emt 0:00:22]} Nc6 {[%emt 0:00:00]} 3. d4 {[%emt 0:00:26]} exd4 {[%emt 0:00:22]} 4. Nxd4 {[%emt 0:00:36]} Bc5 {[%emt 0:01:05]} 5. Nxc6 {[%emt 0:01:02]} Qf6 {[%emt 0:00:58]} 6. Qf3 {[%emt 0:00:55]} Qxc6 {[%emt 0:00:38]} 7. Bd3 {[%emt 0:03:09]} Nf6 {[%emt 0:01:21]} 8. Nc3 {[%emt 0:02:04]} d6 {[%emt 0:04:55]} 9. h3 {[%emt 0:03:56]} Be6 {[%emt 0:03:59]} 10. Bg5 {[%emt 0:03:37]} Bd4 {[%emt 0:04:49]} 11. Qe2 {[%emt 0:01:40]} Bxc3+ {[%emt 0:00:45]} 12. Kf1 {[%emt 0:02:50]} Bxb2 {[%emt 0:00:21]} 13. Rb1 {[%emt 0:04:37]} Qc3 {[%emt 0:00:54]} 14. Bd2 {[%emt 0:01:23]} Qa3 {[%emt 0:01:53]} 15. e5 {[%emt 0:04:00]} dxe5 {[%emt 0:00:59]} 16. Qe1 {[%emt 0:02:38]} Bxa2 {[%emt 0:01:04]} 17. Rd1 {[%emt 0:03:11]} Bd4 {[%emt 0:01:41]} 18. c3 {[%emt 0:01:44]} Bb6 {[%emt 0:01:09]} 19. Qxe5+ {[%emt 0:01:35]} Qe7 {[%emt 0:00:39]} 20. Qg5 {[%emt 0:02:26]} Qc5 {[%emt 0:02:13]} 21. Be3 {[%emt 0:00:16]} Qxg5 {[%emt 0:00:57]} 22. Bxg5 {[%emt 0:01:11]} a5 {[%emt 0:01:38]} 23. Re1+ {[%emt 0:01:32]} Kf8 {[%emt 0:01:00]} 24. Ra1 {[%emt 0:00:37]} Bd5 {[%emt 0:01:06]} 25. Bb5 {[%emt 0:01:09]} Bc6 {[%emt 0:01:39]} 26. Bxc6 {[%emt 0:00:10]} bxc6 {[%emt 0:00:13]} 27. Ke2 {[%emt 0:01:25]} a4 {[%emt 0:00:37]} 28. Bxf6 {[%emt 0:00:09]} gxf6 {[%emt 0:01:23]} 29. Ra2 {[%emt 0:01:37]} Ke7 {[%emt 0:00:35]} 30. Rb1 {[%emt 0:01:03]} Ra5 {[%emt 0:00:49]} 31. f3 {[%emt 0:00:25]} Rha8 {[%emt 0:00:00]} 32. Kd3 {[%emt 0:00:35]} Rd5+ {[%emt 0:00:19]} 33. Kc4 {[%emt 0:00:34]} Rc5+ {[%emt 0:00:54]} 34. Kd3 {[%emt 0:01:17]} Rb5 {[%emt 0:00:43]} 35. Rba1 {[%emt 0:01:17]} Rd5+ {[%emt 0:00:18]} 36. Kc4 {[%emt 0:00:18]} Rc5+ {[%emt 0:00:16]} 37. Kd3 {[%emt 0:00:33]} Rca5 {[%emt 0:00:22]} 38. Kc4 {[%emt 0:00:29]} Bc5 {[%emt 0:01:18]} 39. g3 {[%emt 0:02:39]} Be3 {[%emt 0:01:57]} 40. Kb4 {[%emt 0:01:03]} Bc5+ {[%emt 0:00:24]} 41. Kc4 {[%emt 0:30:31]} Ke6 {[%emt 0:30:53]} 42. Re1+ {[%emt 0:01:00]} Kf5 {[%emt 0:00:51]} 43. Rea1 {[%emt 0:00:54]} Kg5 {[%emt 0:05:09]} 44. f4+ {[%emt 0:00:27]} Kf5 {[%emt 0:00:15]} 45. Kd3 {[%emt 0:00:45]} h5 {[%emt 0:00:33]} 46. g4+ {[%emt 0:00:28]} hxg4 {[%emt 0:01:00]} 47. hxg4+ {[%emt 0:00:17]} Kxf4 {[%emt 0:00:48]} 48. Rf1+ {[%emt 0:00:13]} Kg5 {[%emt 0:00:30]} 49. Rf5+ {[%emt 0:00:35]} Kg6 {[%emt 0:01:24]} 50. Ra1 {[%emt 0:00:26]} a3 {[%emt 0:02:53]} 51. Raf1 {[%emt 0:00:46]} Be7 {[%emt 0:02:15]} 52. Rxa5 {[%emt 0:00:12]} Rxa5 {[%emt 0:00:12]} 53. Ra1 {[%emt 0:00:27]} Kg5 {[%emt 0:01:35]} 54. Ra2 {[%emt 0:00:23]} Kxg4 {[%emt 0:03:48]} 55. c4 {[%emt 0:00:27]} f5 {[%emt 0:01:02]} 56. Ke2 {[%emt 0:00:11]} f4 {[%emt 0:00:10]} 57. Kf1 {[%emt 0:00:16]} f3 {[%emt 0:02:02]} 58. Kg1 {[%emt 0:00:24]} Kg3 {[%emt 0:00:42]} 59. Kf1 {[%emt 0:00:10]} f2 {[%emt 0:01:14]} 60. Ra1 {[%emt 0:00:23]} a2 {[%emt 0:00:24]} 61. c5 {[%emt 0:00:13]} Bf6 {[%emt 0:00:10]} 62. Rxa2 {[%emt 0:00:08]} Rxa2 1/2-1/2

[Event "DVM U12W 2021"]
[Site "Willingen"]
[Date "2022.08.16"]
[Round "7"]
[White "Fruth, Julia"]
[Black "Daaboul, Dima"]
[Result "1-0"]
[ECO "B00"]
[WhiteElo "1037"]
[BlackElo "882"]
[Annotator "NA RC"]
[PlyCount "85"]
[EventDate "2022.08.12"]
[EventType "team-tourn"]
[EventRounds "7"]
[EventCountry "GER"]
[SourceTitle "playchess.com"]
[Source "ChessBase"]
[SourceQuality "1"]
[TimeControl "40/5400+30:1800+30"]

1. e4 {[%emt 0:00:05]} b6 {[%emt 0:00:07]} 2. d4 {[%emt 0:00:06]} Bb7 {[%emt 0:00:08]} 3. Bd3 {[%emt 0:00:34]} f5 {[%emt 0:02:17]} 4. exf5 {[%emt 0:00:22]} Bxg2 {[%emt 0:00:14]} 5. Qh5+ {[%emt 0:00:10]} g6 {[%emt 0:03:42]} 6. fxg6 {[%emt 0:00:09]} Bg7 {[%emt 0:05:02]} 7. gxh7+ {[%emt 0:07:17]} Kf8 {[%emt 0:00:32]} 8. Nf3 {[%emt 0:12:15]} Nf6 {[%emt 0:07:29]} 9. Qg6 {[%emt 0:06:33]} Bxh1 {[%emt 0:01:08]} 10. Bh6 {[%emt 0:05:23]} Rxh7 {[%emt 0:05:50]} 11. Ng5 {[%emt 0:01:06]} Bxh6 {[%emt 0:08:30]} 12. Nxh7+ {[%emt 0:02:40]} Nxh7 {[%emt 0:03:48]} 13. Qxh6+ {[%emt 0:00:17]} Kf7 {[%emt 0:03:35]} 14. Qxh7+ {[%emt 0:04:00]} Ke6 {[%emt 0:00:55]} 15. Qf5+ {[%emt 0:02:07]} Kd6 {[%emt 0:00:12]} 16. f3 {[%emt 0:01:28]} Qg8 {[%emt 0:01:40]} 17. Qe5+ {[%emt 0:01:25]} Kc6 {[%emt 0:00:12]} 18. Be4+ {[%emt 0:00:14]} d5 {[%emt 0:00:18]} 19. c4 {[%emt 0:02:23]} dxe4 {[%emt 0:02:40]} 20. Qxe4+ {[%emt 0:00:26]} Kd7 {[%emt 0:02:02]} 21. Qxa8 {[%emt 0:00:59]} Qg1+ {[%emt 0:00:16]} 22. Kd2 {[%emt 0:00:59]} Qxd4+ {[%emt 0:00:17]} 23. Kc2 {[%emt 0:01:17]} Qf2+ {[%emt 0:02:20]} 24. Nd2 {[%emt 0:00:22]} Bxf3 {[%emt 0:01:25]} 25. Qxf3 {[%emt 0:01:18]} Qxh2 {[%emt 0:01:49]} 26. Rd1 {[%emt 0:01:48]} Qh7+ {[%emt 0:00:28]} 27. Qd3+ {[%emt 0:00:09]} Qxd3+ {[%emt 0:00:25]} 28. Kxd3 {[%emt 0:00:05]} Nc6 {[%emt 0:00:10]} 29. Kc3 {[%emt 0:00:18]} Ke8 {[%emt 0:00:27]} 30. Nf3 {[%emt 0:00:49]} a6 {[%emt 0:01:36]} 31. Nd4 {[%emt 0:00:22]} Na5 {[%emt 0:00:18]} 32. Ne6 {[%emt 0:01:26]} c5 {[%emt 0:00:25]} 33. Nc7+ {[%emt 0:00:09]} Kf7 {[%emt 0:01:39]} 34. Nxa6 {[%emt 0:00:10]} e5 {[%emt 0:00:27]} 35. Rd6 {[%emt 0:00:44]} Ke7 {[%emt 0:00:28]} 36. Rxb6 {[%emt 0:00:13]} e4 {[%emt 0:00:09]} 37. Nb8 {[%emt 0:01:08]} e3 {[%emt 0:03:19]} 38. Nc6+ {[%emt 0:00:16]} Nxc6 {[%emt 0:04:08]} 39. Rxc6 {[%emt 0:00:00]} e2 {[%emt 0:00:22]} 40. Kd2 {[%emt 0:00:00]} Kd7 {[%emt 0:00:28]} 41. Rxc5 {[%emt 0:29:58]} Kd6 {[%emt 0:30:08]} 42. Rd5+ {[%emt 0:00:16]} Ke6 {[%emt 0:00:23]} 43. Kxe2 {[%emt 0:00:10]} 1-0

[Event "DVM U12W 2021"]
[Site "Willingen"]
[Date "2022.08.16"]
[Round "7"]
[White "Einacker, Lina"]
[Black "Leicher, Anna"]
[Result "0-1"]
[ECO "C54"]
[WhiteElo "1010"]
[BlackElo "1252"]
[Annotator "NA RC"]
[PlyCount "97"]
[EventDate "2022.08.12"]
[EventType "team-tourn"]
[EventRounds "7"]
[EventCountry "GER"]
[SourceTitle "playchess.com"]
[Source "ChessBase"]
[SourceQuality "1"]
[TimeControl "40/5400+30:1800+30"]

1. e4 {[%emt 0:00:08]} e5 {[%emt 0:00:00]} 2. Nf3 {[%emt 0:00:12]} Nc6 {[%emt 0:00:00]} 3. Bc4 {[%emt 0:00:12]} Bc5 {[%emt 0:00:00]} 4. c3 {[%emt 0:00:25]} Nf6 {[%emt 0:00:06]} 5. d4 {[%emt 0:01:15]} exd4 {[%emt 0:00:40]} 6. e5 {[%emt 0:02:36]} d5 {[%emt 0:00:39]} 7. Bb5 {[%emt 0:03:22]} Nd7 {[%emt 0:00:55]} 8. Bxc6 {[%emt 0:00:48]} bxc6 {[%emt 0:00:58]} 9. cxd4 {[%emt 0:01:42]} Bb4+ {[%emt 0:02:15]} 10. Bd2 {[%emt 0:01:54]} Bxd2+ {[%emt 0:00:34]} 11. Nbxd2 {[%emt 0:06:51]} c5 {[%emt 0:15:50]} 12. dxc5 {[%emt 0:01:04]} Nxc5 {[%emt 0:06:02]} 13. O-O {[%emt 0:02:34]} O-O {[%emt 0:02:21]} 14. Nb1 {[%emt 0:01:59]} Ba6 {[%emt 0:02:12]} 15. Re1 {[%emt 0:06:29]} Nd3 {[%emt 0:04:25]} 16. Re2 {[%emt 0:15:23]} Nf4 {[%emt 0:03:16]} 17. Rd2 {[%emt 0:06:45]} Qd7 {[%emt 0:09:52]} 18. Nc3 {[%emt 0:06:37]} Rad8 {[%emt 0:05:43]} 19. Rd4 {[%emt 0:06:17]} Qg4 {[%emt 0:05:49]} 20. Ne1 {[%emt 0:01:53]} Nh3+ {[%emt 0:01:02]} 21. Kh1 {[%emt 0:02:30]} Nxf2+ {[%emt 0:00:20]} 22. Kg1 {[%emt 0:03:59]} Nxd1 {[%emt 0:00:08]} 23. Rxg4 {[%emt 0:00:53]} Nxb2 {[%emt 0:00:49]} 24. Rd4 {[%emt 0:00:56]} c6 {[%emt 0:01:37]} 25. Rb4 {[%emt 0:01:36]} Nd3 {[%emt 0:01:02]} 26. Ra4 {[%emt 0:02:10]} Bb5 {[%emt 0:00:25]} 27. Nxb5 {[%emt 0:01:04]} cxb5 {[%emt 0:00:21]} 28. Rxa7 {[%emt 0:00:26]} Nxe5 {[%emt 0:00:15]} 29. Rb7 {[%emt 0:00:48]} Rb8 {[%emt 0:02:06]} 30. Re7 {[%emt 0:00:47]} Rfe8 {[%emt 0:00:43]} 31. Rc7 {[%emt 0:02:17]} Rec8 {[%emt 0:02:23]} 32. Rxc8+ {[%emt 0:00:10]} Rxc8 {[%emt 0:01:32]} 33. Rd1 {[%emt 0:01:18]} Rc5 {[%emt 0:02:06]} 34. Rb1 {[%emt 0:00:32]} Kf8 {[%emt 0:01:17]} 35. Kf2 {[%emt 0:02:12]} Ke7 {[%emt 0:01:06]} 36. h3 {[%emt 0:01:22]} Kd6 {[%emt 0:00:41]} 37. Ke3 {[%emt 0:05:57]} Nc4+ {[%emt 0:01:08]} 38. Kd4 {[%emt 0:01:30]} Nd2 {[%emt 0:03:09]} 39. Rb2 {[%emt 0:01:54]} Ne4 {[%emt 0:05:43]} 40. Nf3 {[%emt 0:02:41]} f6 {[%emt 0:10:05]} 41. Ne1 {[%emt 0:34:15]} Kc6 {[%emt 0:37:46]} 42. Nc2 {[%emt 0:03:16]} Rc4+ {[%emt 0:02:07]} 43. Ke3 {[%emt 0:00:00]} Kc5 {[%emt 0:00:00]} 44. Ne1 {[%emt 0:00:00]} Nc3 {[%emt 0:00:00]} 45. Nd3+ {[%emt 0:00:00]} Kd6 {[%emt 0:00:00]} 46. Rb3 {[%emt 0:00:00]} Nxa2 {[%emt 0:00:00]} 47. Rxb5 {[%emt 0:00:00]} Nc3 {[%emt 0:00:00]} 48. Rb7 {[%emt 0:00:00]} d4+ {[%emt 0:00:00]} 49. Kd2 {[%emt 0:01:06]} 0-1

[Event "DVM U12W 2021"]
[Site "Willingen"]
[Date "2022.08.16"]
[Round "7"]
[White "Müller, Ariana"]
[Black "Kremling, Alamea"]
[Result "1-0"]
[ECO "C50"]
[WhiteElo "975"]
[BlackElo "1077"]
[Annotator "NA RC"]
[PlyCount "37"]
[EventDate "2022.08.12"]
[EventType "team-tourn"]
[EventRounds "7"]
[EventCountry "GER"]
[SourceTitle "playchess.com"]
[Source "ChessBase"]
[SourceQuality "1"]
[TimeControl "40/5400+30:1800+30"]

1. e4 {[%emt 0:00:05]} e5 {[%emt 0:00:00]} 2. Nf3 {[%emt 0:00:07]} Nc6 {[%emt 0:00:00]} 3. Nc3 {[%emt 0:00:32]} Bc5 {[%emt 0:00:00]} 4. Bc4 {[%emt 0:00:56]} Nf6 {[%emt 0:00:30]} 5. d3 {[%emt 0:00:39]} d6 {[%emt 0:00:39]} 6. Bg5 {[%emt 0:01:44]} Be6 {[%emt 0:02:29]} 7. Bb5 {[%emt 0:03:57]} a6 {[%emt 0:01:39]} 8. Bxc6+ {[%emt 0:00:30]} bxc6 {[%emt 0:02:09]} 9. O-O {[%emt 0:03:57]} d5 {[%emt 0:07:09]} 10. Nxe5 {[%emt 0:04:05]} Qd6 {[%emt 0:03:23]} 11. Bxf6 {[%emt 0:00:27]} gxf6 {[%emt 0:03:20]} 12. Nf3 {[%emt 0:01:52]} Rg8 {[%emt 0:06:49]} 13. d4 {[%emt 0:09:24]} Bh3 {[%emt 0:05:31]} 14. Nh4 {[%emt 0:11:45]} Bb6 {[%emt 0:02:03]} 15. Re1 {[%emt 0:13:46]} Rd8 {[%emt 0:02:16]} 16. exd5+ {[%emt 0:00:58]} Kd7 {[%emt 0:05:58]} 17. Qd3 {[%emt 0:02:07]} Bg4 {[%emt 0:01:43]} 18. h3 {[%emt 0:00:00]} Bh5 {[%emt 0:00:00]} 19. Qf5+ {[%emt 0:00:00]} 1-0

[Event "DVM U12W 2021"]
[Site "Willingen"]
[Date "2022.08.16"]
[Round "7"]
[White "Marrufo, Adriana"]
[Black "Doberchak, Emily Alice"]
[Result "1-0"]
[ECO "C50"]
[WhiteElo "942"]
[BlackElo "928"]
[Annotator "NA RC"]
[PlyCount "61"]
[EventDate "2022.08.12"]
[EventType "team-tourn"]
[EventRounds "7"]
[EventCountry "GER"]
[SourceTitle "playchess.com"]
[Source "ChessBase"]
[SourceQuality "1"]
[TimeControl "40/5400+30:1800+30"]

1. e4 {[%emt 0:00:13]} e5 {[%emt 0:00:11]} 2. Nf3 {[%emt 0:00:25]} Nc6 {[%emt 0:00:11]} 3. Bc4 {[%emt 0:00:19]} Nf6 {[%emt 0:00:43]} 4. d3 {[%emt 0:00:32]} Bc5 {[%emt 0:00:10]} 5. Nc3 {[%emt 0:00:31]} d6 {[%emt 0:00:12]} 6. h3 {[%emt 0:00:21]} Be6 {[%emt 0:00:23]} 7. Bb3 {[%emt 0:00:26]} Bxb3 {[%emt 0:00:09]} 8. axb3 {[%emt 0:00:28]} d5 {[%emt 0:01:46]} 9. Nxe5 {[%emt 0:11:53]} Nxe5 {[%emt 0:01:26]} 10. d4 {[%emt 0:00:17]} Bxd4 {[%emt 0:00:29]} 11. Qxd4 {[%emt 0:00:51]} Nc6 {[%emt 0:00:45]} 12. Qd3 {[%emt 0:01:54]} Nb4 {[%emt 0:02:02]} 13. Qb5+ {[%emt 0:02:27]} Nc6 {[%emt 0:00:36]} 14. Qxb7 {[%emt 0:01:01]} Ne7 {[%emt 0:01:04]} 15. Ra5 {[%emt 0:01:43]} c6 {[%emt 0:01:09]} 16. f3 {[%emt 0:04:30]} dxe4 {[%emt 0:00:54]} 17. fxe4 {[%emt 0:01:09]} O-O {[%emt 0:00:37]} 18. Ra4 {[%emt 0:02:25]} Qd7 {[%emt 0:03:08]} 19. Qa6 {[%emt 0:01:13]} Ne8 {[%emt 0:01:25]} 20. Bd2 {[%emt 0:01:01]} Nc7 {[%emt 0:00:20]} 21. Qe2 {[%emt 0:01:02]} Rfe8 {[%emt 0:00:29]} 22. Kd1 {[%emt 0:00:57]} Ne6 {[%emt 0:02:28]} 23. Kc1 {[%emt 0:01:43]} Nc5 {[%emt 0:00:40]} 24. Ra5 {[%emt 0:01:10]} Nb7 {[%emt 0:02:44]} 25. Ra3 {[%emt 0:01:39]} Nd5 {[%emt 0:01:04]} 26. Qf2 {[%emt 0:02:13]} Nxc3 {[%emt 0:00:23]} 27. Bxc3 {[%emt 0:00:21]} Rxe4 {[%emt 0:00:59]} 28. Qg3 {[%emt 0:01:15]} g6 {[%emt 0:00:56]} 29. Qf3 {[%emt 0:00:37]} Nd6 {[%emt 0:00:10]} 30. Qf6 {[%emt 0:01:33]} Ne8 {[%emt 0:00:48]} 31. Qh8# {[%emt 0:00:22]} 1-0

[Event "DVM U12W 2021"]
[Site "Willingen"]
[Date "2022.08.16"]
[Round "7"]
[White "Mauhs, Helena"]
[Black "Yan, Jenny"]
[Result "1-0"]
[ECO "B30"]
[WhiteElo "857"]
[BlackElo "984"]
[Annotator "NA RC"]
[PlyCount "71"]
[EventDate "2022.08.12"]
[EventType "team-tourn"]
[EventRounds "7"]
[EventCountry "GER"]
[SourceTitle "playchess.com"]
[Source "ChessBase"]
[SourceQuality "1"]
[TimeControl "40/5400+30:1800+30"]

1. e4 {[%emt 0:00:03]} c5 {[%emt 0:00:07]} 2. Nf3 {[%emt 0:00:26]} Nc6 {[%emt 0:00:11]} 3. Bc4 {[%emt 0:01:05]} e6 {[%emt 0:00:25]} 4. Nc3 {[%emt 0:00:46]} Nf6 {[%emt 0:01:16]} 5. e5 {[%emt 0:01:19]} Ng4 {[%emt 0:01:32]} 6. h3 {[%emt 0:01:38]} Ngxe5 {[%emt 0:00:16]} 7. d4 {[%emt 0:01:30]} Nxc4 {[%emt 0:00:22]} 8. dxc5 {[%emt 0:03:08]} Bxc5 {[%emt 0:01:14]} 9. Bf4 {[%emt 0:01:18]} Nb6 {[%emt 0:04:09]} 10. Qd3 {[%emt 0:03:53]} d5 {[%emt 0:03:15]} 11. O-O-O {[%emt 0:03:23]} Bxf2 {[%emt 0:01:27]} 12. Nb5 {[%emt 0:03:38]} O-O {[%emt 0:05:47]} 13. Ng5 {[%emt 0:02:39]} g6 {[%emt 0:03:24]} 14. Qf3 {[%emt 0:02:19]} Bh4 {[%emt 0:03:30]} 15. Qg4 {[%emt 0:02:03]} Bxg5 {[%emt 0:03:57]} 16. Bxg5 {[%emt 0:01:41]} e5 {[%emt 0:02:13]} 17. Qh4 {[%emt 0:02:21]} f6 {[%emt 0:02:33]} 18. Bh6 {[%emt 0:01:10]} Rf7 {[%emt 0:01:47]} 19. Rhf1 {[%emt 0:04:14]} Nc4 {[%emt 0:03:00]} 20. Nc3 {[%emt 0:06:33]} Nd6 {[%emt 0:02:06]} 21. Nxd5 {[%emt 0:01:19]} f5 {[%emt 0:04:34]} 22. Bg5 {[%emt 0:01:04]} Qf8 {[%emt 0:03:34]} 23. Nf6+ {[%emt 0:01:30]} Kh8 {[%emt 0:00:44]} 24. g4 {[%emt 0:01:59]} a5 {[%emt 0:02:49]} 25. Bh6 {[%emt 0:00:55]} Qe7 {[%emt 0:04:09]} 26. g5 {[%emt 0:02:41]} Ne4 {[%emt 0:02:21]} 27. Nxe4 {[%emt 0:07:37]} fxe4 {[%emt 0:00:29]} 28. Qxe4 {[%emt 0:00:40]} Bxh3 {[%emt 0:01:02]} 29. Rf3 {[%emt 0:02:16]} Rxf3 {[%emt 0:02:23]} 30. Qxf3 {[%emt 0:00:37]} Qe6 {[%emt 0:01:50]} 31. Rd2 {[%emt 0:01:33]} Bf5 {[%emt 0:01:54]} 32. Qa3 {[%emt 0:03:57]} Qe7 {[%emt 0:03:46]} 33. Qb3 {[%emt 0:01:14]} Rd8 {[%emt 0:00:46]} 34. Rxd8+ {[%emt 0:01:09]} Qxd8 {[%emt 0:00:07]} 35. Qf7 {[%emt 0:00:35]} Qe7 {[%emt 0:00:55]} 36. Bg7# {[%emt 0:01:08]} 1-0